{"text_format":"1","workbook":"xlsx","n_sheets":6,"sheets":["Inicio ","Datos","GI-009","GI-011","GI-288","GI-289"],"not_rendered":{"charts":0,"images":9,"macros":1,"external_links":1,"defined_names":7,"comments":0,"pivot_tables":0},"unopened":[],"bounds":{"document_bytes":16777216,"sheet_cells":100000,"rows_first":2000,"rows_last":500,"rows_between":2000,"halvings":0,"cell_chars":16384,"cell_head_chars":4096},"cells_cut":0,"cells_raw":0,"read":"whole","date_system":"1900"}

{"sheet":"Inicio ","index":0,"n_rows":14,"n_cols":13,"rows_kept":14,"cut":false,"hidden":false,"merged":[[5,1,5,12],[13,1,13,12],[1,1,3,2],[1,3,1,8],[1,9,1,10],[1,11,3,12],[2,3,2,8],[2,9,2,10],[3,3,3,8],[3,9,3,10]]}
[null,null,null,null,null,null,null,null,null,null,null,null," "]
[null,null,null,"HOJA DE VIDA DE INDICADOR",null,null,null,null,null,"Código: GI-GUI-002-FR-004"]
[null,null,null,"Macroproceso: Direccionamiento Estratégico",null,null,null,null,null,"Versión: 04"]
[null,null,null,"Proceso: Gestión Integrada",null,null,null,null,null,"Fecha de Aprobación: 13/10/2022"]
[]
[null,"Listado de Indicadores del proceso"]
[]
[]
[]
[]
[]
[]
[]
[null,"Seleccione el indicador de su interés:"]

{"sheet":"Datos","index":1,"n_rows":5,"n_cols":1,"rows_kept":5,"cut":false,"hidden":true,"merged":[]}
["GI-009, Porcentaje de riesgos materializados por fuera del nivel de tolerancia"]
["GI-011, Grado de cumplimiento de la planificación del SIGUD"]
["GI-0XX, Grado de cumplimiento del Plan Anticorrupción y de Atención al Ciudadano"]
["GI-0XX, Percepción frente a las jornadas de capacitación y/o socialización del SIGUD"]
[" - Seleccione un indicador - "]

{"sheet":"GI-009","index":2,"n_rows":60,"n_cols":15,"rows_kept":60,"cut":false,"hidden":false,"merged":[[59,1,59,2],[59,3,59,5],[59,6,59,8],[59,9,59,12],[51,1,51,12],[52,1,52,4],[52,5,52,8],[52,9,52,12],[53,2,53,4],[53,6,53,8],[58,1,58,2],[58,3,58,5],[58,6,58,8],[58,9,58,12],[53,10,53,12],[54,2,54,4],[54,6,54,8],[54,10,54,12],[55,2,55,4],[55,6,55,8],[55,10,55,12],[56,1,56,12],[57,1,57,2],[57,3,57,5],[45,1,45,12],[46,1,46,12],[47,1,47,12],[48,1,48,12],[49,1,49,3],[49,4,49,6],[49,7,49,9],[49,10,49,12],[50,1,50,3],[50,4,50,6],[50,7,50,9],[50,10,50,12],[36,2,36,12],[37,2,37,12],[38,2,38,12],[39,2,39,12],[40,2,40,12],[41,2,41,12],[42,1,42,12],[43,1,43,12],[44,1,44,12],[27,10,27,12],[28,1,28,2],[28,3,28,4],[28,5,28,6],[28,7,28,9],[28,10,28,12],[35,2,35,12],[29,1,30,2],[29,3,30,4],[29,5,30,6],[29,7,29,9],[29,10,29,12],[30,10,30,12],[31,1,31,12],[33,1,33,12],[34,2,34,12],[32,1,32,12],[13,1,13,12],[9,1,9,12],[10,1,10,2],[10,3,10,8],[10,9,10,10],[10,11,10,12],[11,1,12,2],[11,3,11,4],[11,5,11,12],[12,3,12,4],[12,5,12,12],[4,1,4,12],[5,1,5,12],[8,1,8,2],[8,3,8,8],[8,9,8,10],[8,11,8,12],[1,1,3,2],[1,3,1,8],[1,9,1,10],[1,11,3,12],[2,3,2,8],[2,9,2,10],[3,3,3,8],[3,9,3,10],[6,1,6,12],[7,1,7,2],[7,3,7,8],[7,9,7,10],[7,11,7,12],[57,6,57,8],[57,9,57,12],[14,9,15,10],[14,11,15,12],[16,1,18,5],[16,6,18,8],[16,11,18,12],[19,1,19,12],[20,1,20,5],[20,6,20,8],[20,9,20,12],[14,1,15,5],[14,6,15,8],[21,1,22,5],[21,6,22,8],[21,9,22,12],[23,1,24,5],[23,6,24,8],[23,9,24,12],[25,1,26,5],[25,6,26,8],[25,9,26,12],[27,1,27,6],[27,7,27,9]]}
[null,null,null,null,null,null,null,null,null,null,null,null," "]
[null,null,null,"HOJA DE VIDA DE INDICADOR",null,null,null,null,null,"Código: GI-GUI-002-FR-004"]
[null,null,null,"Macroproceso: Direccionamiento Estratégico",null,null,null,null,null,"Versión: 04"]
[null,null,null,"Proceso: Gestión Integrada",null,null,null,null,null,"Fecha de Aprobación: 13/10/2022"]
[]
[]
[null,"IDENTIFICACIÓN DEL INDICADOR"]
[null,"Nombre:",null,"Porcentaje de riesgos materializados por fuera del nivel de tolerancia",null,null,null,null,null,"Código:",null,"GI-009"]
[null,"Objetivo:",null,"Identificar el nivel de riesgos de gestión materializados con zona residual moderada, alta y extrema.",null,null,null,null,null,"Proceso asociado:",null,"Gestión Integrada"]
[null,"ÁMBITO DEL INDICADOR"]
[null,"Tipo de Indicador:",null,null,null,null,null,null,null,"Nivel de Intervención:",null,"Resultados"]
[null,"Alineación con el Plan Estratégico de Desarrollo 2018 - 2030:",null,"Lineamiento 5",null,"5.10 Fortalecimiento y ampliación de mecanismos que garanticen la eficiencia, eficacia y efectividad de las funciones universitarias; la transparencia y la ética en la toma de decisiones y en la operación institucional; y la seguridad jurídica institucional.",null,null,null,null,null,null,null,null,{"$f":"IF(D12=\"Lineamiento 1\",\"UNO\",IF(D12=\"Lineamiento 2\",\"DOS\",IF(D12=\"Lineamiento 3\",\"TRES\",IF(D12=\"Lineamiento 4\",\"CUATRO\",IF(D12=\"Lineamiento 5\",\"CINCO\")))))","v":"CINCO"}]
[null,null,null,null,null,null,null,null,null,null,null,null,null,null,{"$f":"IF(D13=\"Lineamiento 1\",\"UNO\",IF(D13=\"Lineamiento 2\",\"DOS\",IF(D13=\"Lineamiento 3\",\"TRES\",IF(D13=\"Lineamiento 4\",\"CUATRO\",IF(D13=\"Lineamiento 5\",\"CINCO\")))))","v":false}]
[null," FORMA DE CÁLCULO"]
[null,"Fórmula",null,null,null,null,"Unidad de Medida",null,null,"Tendencia esperada del Indicador",null,"Meta o Valor Esperado"]
[]
[null,"((Número de riesgos de gestión materializados con zona residual moderada, alta y extrema en el cuatrimestre evaluado)/(Número total de riesgos de gestión identificados))*100%",null,null,null,null,"%",null,null,"              Creciente",null,0.1]
[null,null,null,null,null,null,null,null,null,"              Decreciente"]
[null,null,null,null,null,null,null,null,null,"              Estático"]
[null," VARIABLES DEL INDICADOR"]
[null,"Nombre",null,null,null,null,"Unidad de Medida",null,null,"Fuente de Información "]
[null,"Número de riesgos de gestión materializados con zona residual moderada, alta y extrema en el cuatrimestre evaluado",null,null,null,null,"Número de riesgos materializados",null,null,"Informes Cuatrimestrales de Monitoreo de Riesgos"]
[]
[null,"Número total de riesgos de gestión identificados",null,null,null,null,"Número de riesgos identificados",null,null,"Mapa Integral de Riesgos de la Universidad Distrital"]
[]
[]
[]
[null," RANGOS DE EVALUACIÓN",null,null,null,null,null,"PERIODICIDAD DE MEDICIÓN",null,null,"REPORTE DEL INDICADOR"]
[null,"Crítico",null,"En Riesgo",null,"Adecuado",null,"        Anual                              Trimestral",null,null,"         Líder del Proceso"]
[null,"Más de 21%",null,"Entre 11% y 20%",null,"10% o menos",null,"        Semestral                        Mensual",null,null,"         Gestor del Proceso"]
[null,null,null,null,null,null,null,"        Cuatrimestral",null,null,"         Automático (sistema de información)"]
[null," INTERPRETACIÓN DE LOS RESULTADOS DEL INDICADOR (Cómo se lee el Indicador)"]
[null,"Porcentaje de riesgos de gestión materializados con zona residual moderada, alta y extrema en el cuatrimestre evaluado con respecto al total de riesgos de gestión identificados."]
[null,"INSTRUCCIONES PARA EL CÁLCULO DE VARIABLES"]
[null,"Numerador:","Número de riesgos de gestión materializados con zona residual moderada, alta y extrema en el cuatrimestre evaluado"]
[null,"1.","Consultar el Informe Cuatrimestral de Monitoreo al Mapa Integral de Riesgos correspondiente"]
[null,"2.","Verificar la cantidad de riesgos de gestión materializados con zona residual moderada, alta y extrema"]
[null,"3."]
[null,"Denominador:","Número total de riesgos de gestión identificados"]
[null,"1.","Consultar el Mapa Integral de Riesgos de la Universidad Distrital"]
[null,"2.","Realizar la sumatoria de riesgos de gestión identificados de todos los Procesos del Modelo de Operación"]
[null,"3."]
[null," DEFINICIÓN DE TÉRMINOS"]
[null,"Administración del Riesgo: Conjunto de elementos de Control que al interrelacionarse permiten a la Entidad evaluar aquellos eventos negativos, tanto internos como externos, que puedan afectar o impedir el logro de sus objetivos institucionales o los eventos positivos, que permitan identificar oportunidades para un mejor cumplimiento de su función. Se constituye en el componente de Control que al interactuar sus diferentes elementos le permite a la entidad autocontrolar aquellos eventos que pueden afectar el cumplimiento de sus objetivos."]
[null,"Mapa de Riesgos (Matriz de Riesgos): Herramienta o instrumento que facilita la identificación de peligros y evaluación de los Riesgos asociados a un Proceso, sistema o entidad, por cuanto se registra en ella la información del Riesgo.",null,null,null,null,null,null,null,null,null,null,null,null,{"$f":"UPPER(B45)","v":"MAPA DE RIESGOS (MATRIZ DE RIESGOS): HERRAMIENTA O INSTRUMENTO QUE FACILITA LA IDENTIFICACIÓN DE PELIGROS Y EVALUACIÓN DE LOS RIESGOS ASOCIADOS A UN PROCESO, SISTEMA O ENTIDAD, POR CUANTO SE REGISTRA EN ELLA LA INFORMACIÓN DEL RIESGO."}]
[null,"Riesgo: Posibilidad de que suceda algún evento que tendrá un impacto sobre los objetivos institucionales o del Proceso. Se expresa en términos de probabilidad y consecuencias, es decir, la combinación de la probabilidad de que ocurra un evento peligroso, con las consecuencias que conlleva la materialización del mismo.",null,null,null,null,null,null,null,null,null,null,null,null,{"$f":"UPPER(B46)","v":"RIESGO: POSIBILIDAD DE QUE SUCEDA ALGÚN EVENTO QUE TENDRÁ UN IMPACTO SOBRE LOS OBJETIVOS INSTITUCIONALES O DEL PROCESO. SE EXPRESA EN TÉRMINOS DE PROBABILIDAD Y CONSECUENCIAS, ES DECIR, LA COMBINACIÓN DE LA PROBABILIDAD DE QUE OCURRA UN EVENTO PELIGROSO, CON LAS CONSECUENCIAS QUE CONLLEVA LA MATERIALIZACIÓN DEL MISMO."}]
[null,"Riesgos de Calidad (de Gestión): Posibilidad de ocurrencia de algún evento que impacte el cumplimiento de los objetivos institucionales. Se expresa en términos de probabilidad e impacto.",null,null,null,null,null,null,null,null,null,null,null,null,{"$f":"UPPER(B47)","v":"RIESGOS DE CALIDAD (DE GESTIÓN): POSIBILIDAD DE OCURRENCIA DE ALGÚN EVENTO QUE IMPACTE EL CUMPLIMIENTO DE LOS OBJETIVOS INSTITUCIONALES. SE EXPRESA EN TÉRMINOS DE PROBABILIDAD E IMPACTO."}]
[null,"Riesgo Residual: Nivel de Riesgo que permanece luego de tomar sus correspondientes medidas de tratamiento.",null,null,null,null,null,null,null,null,null,null,null,null,{"$f":"UPPER(B48)","v":"RIESGO RESIDUAL: NIVEL DE RIESGO QUE PERMANECE LUEGO DE TOMAR SUS CORRESPONDIENTES MEDIDAS DE TRATAMIENTO."}]
[null," RESPONSABLES DE LA MEDICIÓN"]
[null,"Nivel:",null,null,"Consolidar y Reportar Datos",null,null,"Seguimiento y Análisis",null,null,"Toma de Decisiones"]
[null,"Cargo:",null,null,"Equipo SIGUD de la Oficina Asesora de Planeación y Control",null,null,"Jefe de Oficina Asesora de Planeación y Control",null,null,"Jefe de Oficina Asesora de Planeación y Control"]
[null,"VERIFICACIÓN Y APROBACIÓN"]
[null,"Elaboró",null,null,null,"Revisó",null,null,null,"Aprobó"]
[null,"Nombre:","Equipo SIGUD",null,null,"Nombre:","Jennifer Crespo",null,null,"Nombre:","Jennifer Crespo"]
[null,"Cargo:","Oficina Asesora de Planeación y Control",null,null,"Cargo:","Jefe de la Oficina Asesora de Planeación y Control",null,null,"Cargo:","Jefe de la Oficina Asesora de Planeación y Control"]
[null,"Fecha:","2022-12-05",null,null,"Fecha:","2023-03-06",null,null,"Fecha:","2023-03-06"]
[]
[null,"Fecha",null,"Versión",null,null,"Cambios",null,null,"Justificación del Cambio"]
[null,"2017-11-16",null,1,null,null,"Creación",null,null,"Se crea el indicador para realizar la evaluación de los riesgos críticos mitigados para el Sistema Integrado de Gestión  de la Universidad Distrital."]
[null,"XX/12/2022",null,2,null,null,"Actualización del nombre, objetivo, fórmula e instrucciones de cálculo del indicador",null,null,"Se requiere ajustar el indicador de acuerdo con las dinámicas actuales de monitoreo de riesgos, así como a los lineamientos del Manual de Gestión para la Administración del Riesgo."]

{"sheet":"GI-011","index":3,"n_rows":48,"n_cols":15,"rows_kept":48,"cut":false,"hidden":false,"merged":[[46,1,46,2],[46,3,46,5],[46,6,46,8],[46,9,46,12],[47,1,47,2],[47,3,47,5],[47,6,47,8],[47,9,47,12],[42,2,42,4],[42,6,42,8],[42,10,42,12],[43,2,43,4],[43,6,43,8],[43,10,43,12],[44,1,44,12],[45,1,45,2],[45,3,45,5],[45,6,45,8],[45,9,45,12],[38,1,38,3],[38,4,38,6],[38,7,38,9],[38,10,38,12],[39,1,39,12],[40,1,40,4],[40,5,40,8],[40,9,40,12],[41,2,41,4],[41,6,41,8],[41,10,41,12],[24,1,25,5],[24,6,25,8],[24,9,25,12],[26,1,26,6],[26,7,26,9],[26,10,26,12],[27,1,27,2],[32,1,32,12],[27,3,27,4],[27,5,27,6],[27,7,27,9],[27,10,27,12],[28,1,29,2],[28,3,29,4],[28,5,29,6],[28,7,28,9],[15,11,17,12],[18,1,18,12],[19,1,19,5],[19,6,19,8],[19,9,19,12],[20,1,21,5],[20,6,21,8],[20,9,21,12],[22,1,23,5],[22,6,23,8],[22,9,23,12],[6,1,6,2],[6,3,6,8],[6,9,6,10],[6,11,6,12],[7,1,7,2],[7,3,7,8],[7,9,7,10],[7,11,7,12],[9,1,9,2],[8,1,8,12],[9,3,9,8],[9,9,9,10],[9,11,9,12],[4,1,4,12],[5,1,5,12],[1,1,3,2],[1,3,1,8],[1,9,1,10],[1,11,3,12],[2,3,2,8],[2,9,2,10],[3,3,3,8],[3,9,3,10],[33,1,33,12],[34,1,34,12],[35,1,35,12],[36,1,36,12],[37,1,37,3],[37,4,37,6],[37,7,37,9],[37,10,37,12],[10,1,11,2],[10,3,10,4],[10,5,10,12],[11,3,11,4],[11,5,11,12],[28,10,28,12],[29,10,29,12],[30,1,30,12],[31,1,31,12],[12,1,12,12],[13,1,14,5],[13,6,14,8],[13,9,14,10],[13,11,14,12],[15,1,17,5],[15,6,17,8]]}
[null,null,null,null,null,null,null,null,null,null,null,null," "]
[null,null,null,"HOJA DE VIDA DE INDICADOR",null,null,null,null,null,"Código: GI-GUI-002-FR-004"]
[null,null,null,"Macroproceso: Direccionamiento Estratégico",null,null,null,null,null,"Versión: 04"]
[null,null,null,"Proceso: Gestión Integrada",null,null,null,null,null,"Fecha de Aprobación: 13/10/2022"]
[]
[null,"IDENTIFICACIÓN DEL INDICADOR"]
[null,"Nombre:",null,"Grado de cumplimiento de la planificación del SIGUD",null,null,null,null,null,"Código:",null,"GI-011"]
[null,"Objetivo:",null,"Evaluar el nivel de cumplimiento del Plan de Sostenibilidad del Sistema Integrado de Gestión de la vigencia.",null,null,null,null,null,"Proceso asociado:",null,"Gestión Integrada"]
[null,"ÁMBITO DEL INDICADOR"]
[null,"Tipo de Indicador:",null,null,null,null,null,null,null,"Nivel de Intervención:",null,"Resultados"]
[null,"Alineación con el Plan Estratégico de Desarrollo 2018 - 2030:",null,"Lineamiento 5",null,"5.10 Fortalecimiento y ampliación de mecanismos que garanticen la eficiencia, eficacia y efectividad de las funciones universitarias; la transparencia y la ética en la toma de decisiones y en la operación institucional; y la seguridad jurídica institucional.",null,null,null,null,null,null,null,null,{"$f":"IF(D11=\"Lineamiento 1\",\"UNO\",IF(D11=\"Lineamiento 2\",\"DOS\",IF(D11=\"Lineamiento 3\",\"TRES\",IF(D11=\"Lineamiento 4\",\"CUATRO\",IF(D11=\"Lineamiento 5\",\"CINCO\")))))","v":"CINCO"}]
[null,null,null,null,null,null,null,null,null,null,null,null,null,null,{"$f":"IF(D12=\"Lineamiento 1\",\"UNO\",IF(D12=\"Lineamiento 2\",\"DOS\",IF(D12=\"Lineamiento 3\",\"TRES\",IF(D12=\"Lineamiento 4\",\"CUATRO\",IF(D12=\"Lineamiento 5\",\"CINCO\")))))","v":false}]
[null," FORMA DE CÁLCULO"]
[null,"Fórmula",null,null,null,null,"Unidad de Medida",null,null,"Tendencia esperada del Indicador",null,"Meta o Valor Esperado"]
[]
[null,"Ʃ (Avance de las actividades del Plan de Sostenibilidad del Sistema Integrado de Gestión - SIGUD del trimestre evaluado)*(Ponderado asignado a cada actividad)",null,null,null,null,"%",null,null,"              Creciente",null,1]
[null,null,null,null,null,null,null,null,null,"              Decreciente"]
[null,null,null,null,null,null,null,null,null,"              Estático"]
[null," VARIABLES DEL INDICADOR"]
[null,"Nombre",null,null,null,null,"Unidad de Medida",null,null,"Fuente de Información "]
[null,"Avance de las actividades del Plan de Sostenibilidad del Sistema Integrado de Gestión - SIGUD del trimestre evaluado",null,null,null,null,"%",null,null,"Plan de Sostenibilidad del Sistema Integrado de Gestión - SIGUD"]
[]
[null,"Ponderado asignado a cada actividad",null,null,null,null,"%",null,null,"Plan de Sostenibilidad del Sistema Integrado de Gestión - SIGUD"]
[]
[]
[]
[null," RANGOS DE EVALUACIÓN",null,null,null,null,null,"PERIODICIDAD DE MEDICIÓN",null,null,"REPORTE DEL INDICADOR"]
[null,"Crítico",null,"En Riesgo",null,"Adecuado",null,"        Anual                              Trimestral",null,null,"         Líder del Proceso"]
[null,"Menos de 69%",null,"Entre 89% y 70%",null,"Entre 100% y 90%",null,"        Semestral                        Mensual",null,null,"         Gestor del Proceso"]
[null,null,null,null,null,null,null,"        Cuatrimestral",null,null,"         Automático (sistema de información)"]
[null," INTERPRETACIÓN DE LOS RESULTADOS DEL INDICADOR (Cómo se lee el Indicador)"]
[null,"El porcentaje representa la relación entre el nivel de avance de actividades ejecutadas y el número total de actividades programadas en el Plan de Sostenibilidad del Sistema Integrado de Gestión - SIGUD."]
[null,"Plan de Sostenibilidad del Sistema Integrado de Gestión: Es el conjunto de actividades orientadas a la implementación, la mejora continua y la sostenibilidad del Sistema Integrado de Gestión - SIGUD, tomando como Marco de Referencia el Modelo Integrado de Planeación y Gestión - MIPG, con el fin  de fortalecer  los mecanismos, métodos y procedimientos de gestión y control al interior de la Universidad, y adecuar la institucionalidad del Sistema y de las instancias  correspondientes con el Modelo.",null,null,null,null,null,null,null,null,null,null,null,null,{"$f":"UPPER(B33)","v":"PLAN DE SOSTENIBILIDAD DEL SISTEMA INTEGRADO DE GESTIÓN: ES EL CONJUNTO DE ACTIVIDADES ORIENTADAS A LA IMPLEMENTACIÓN, LA MEJORA CONTINUA Y LA SOSTENIBILIDAD DEL SISTEMA INTEGRADO DE GESTIÓN - SIGUD, TOMANDO COMO MARCO DE REFERENCIA EL MODELO INTEGRADO DE PLANEACIÓN Y GESTIÓN - MIPG, CON EL FIN  DE FORTALECER  LOS MECANISMOS, MÉTODOS Y PROCEDIMIENTOS DE GESTIÓN Y CONTROL AL INTERIOR DE LA UNIVERSIDAD, Y ADECUAR LA INSTITUCIONALIDAD DEL SISTEMA Y DE LAS INSTANCIAS  CORRESPONDIENTES CON EL MODELO."}]
[null,null,null,null,null,null,null,null,null,null,null,null,null,null,{"$f":"UPPER(B34)","v":""}]
[null,null,null,null,null,null,null,null,null,null,null,null,null,null,{"$f":"UPPER(B35)","v":""}]
[null,null,null,null,null,null,null,null,null,null,null,null,null,null,{"$f":"UPPER(B36)","v":""}]
[null," RESPONSABLES DE LA MEDICIÓN"]
[null,"Nivel:",null,null,"Consolidar y Reportar Datos",null,null,"Seguimiento y Análisis",null,null,"Toma de Decisiones"]
[null,"Cargo:",null,null,"Equipo SIGUD de la Oficina Asesora de Planeación y Control",null,null,"Jefe de Oficina Asesora de Planeación y Control",null,null,"Jefe de Oficina Asesora de Planeación y Control"]
[null,"VERIFICACIÓN Y APROBACIÓN"]
[null,"Elaboró",null,null,null,"Revisó",null,null,null,"Aprobó"]
[null,"Nombre:","Equipo SIGUD",null,null,"Nombre:","Jennifer Crespo",null,null,"Nombre:","Jennifer Crespo"]
[null,"Cargo:","Contratista - Oficina Asesora de Planeación y Control",null,null,"Cargo:","Jefe de la Oficina Asesora de Planeación y Control",null,null,"Cargo:","Jefe de la Oficina Asesora de Planeación y Control"]
[null,"Fecha:","2022-12-05",null,null,"Fecha:","2023-05-11",null,null,"Fecha:","2023-05-11"]
[]
[null,"Fecha",null,"Versión",null,null,"Cambios",null,null,"Justificación del Cambio"]
[null,"2017-11-16",null,2,null,null,"Actualización",null,null,"Se realiza la actualización del objetivo del proceso, la estrategia del plan de desarrollo a la que esta alineado el indicador, se modifica los responsables de la medición."]
[null,"2023-05-11",null,3,null,null,"Actualización del objetivo, fórmula e instrucciones de cálculo del indicador",null,null,"Se requiere ajustar el indicador de acuerdo con las dinámicas actuales del Equipo SIGUD, así como lo estipulado en el Procedimiento GI-PR-001, Planificación, Ejecución, Seguimiento y Control del SIGUD."]

{"sheet":"GI-288","index":4,"n_rows":58,"n_cols":15,"rows_kept":58,"cut":false,"hidden":false,"merged":[[4,1,4,12],[5,1,5,12],[6,1,6,2],[6,3,6,8],[6,9,6,10],[6,11,6,12],[1,1,3,2],[1,3,1,8],[1,9,1,10],[1,11,3,12],[2,3,2,8],[2,9,2,10],[3,3,3,8],[3,9,3,10],[10,1,11,2],[10,3,10,4],[10,5,10,12],[11,3,11,4],[11,5,11,12],[12,1,12,12],[7,1,7,2],[7,3,7,8],[7,9,7,10],[7,11,7,12],[8,1,8,12],[9,1,9,2],[9,3,9,8],[9,9,9,10],[9,11,9,12],[18,1,18,12],[19,1,19,5],[19,6,19,8],[19,9,19,12],[20,1,21,5],[20,6,21,8],[20,9,21,12],[13,1,14,5],[13,6,14,8],[13,9,14,10],[13,11,14,12],[15,1,17,5],[15,6,17,8],[15,11,17,12],[26,1,26,6],[26,7,26,9],[26,10,26,12],[27,1,27,2],[27,3,27,4],[27,5,27,6],[27,7,27,9],[27,10,27,12],[22,1,23,5],[22,6,23,8],[22,9,23,12],[24,1,25,5],[24,6,25,8],[24,9,25,12],[30,1,30,12],[31,1,31,12],[32,1,32,12],[28,1,29,2],[28,3,29,4],[28,5,29,6],[28,7,28,9],[28,10,28,12],[29,10,29,12],[46,1,46,12],[47,1,47,12],[48,1,48,3],[48,4,48,6],[48,7,48,9],[48,10,48,12],[33,2,33,12],[34,2,34,12],[35,2,35,12],[36,2,36,12],[37,2,37,12],[38,2,38,12],[44,1,44,12],[45,1,45,12],[42,1,42,12],[43,1,43,12],[39,2,39,12],[40,2,40,12],[41,1,41,12],[52,2,52,4],[52,6,52,8],[52,10,52,12],[53,2,53,4],[53,6,53,8],[53,10,53,12],[49,1,49,3],[49,4,49,6],[49,7,49,9],[49,10,49,12],[50,1,50,12],[51,1,51,4],[51,5,51,8],[51,9,51,12],[57,1,57,2],[57,3,57,5],[57,6,57,8],[57,9,57,12],[54,2,54,4],[54,6,54,8],[54,10,54,12],[55,1,55,12],[56,1,56,2],[56,3,56,5],[56,6,56,8],[56,9,56,12]]}
[null,null,null,null,null,null,null,null,null,null,null,null," "]
[null,null,null,"HOJA DE VIDA DE INDICADOR",null,null,null,null,null,"Código: GI-GUI-002-FR-004"]
[null,null,null,"Macroproceso: Direccionamiento Estratégico",null,null,null,null,null,"Versión: 04"]
[null,null,null,"Proceso: Gestión Integrada",null,null,null,null,null,"Fecha de Aprobación: 13/10/2022"]
[]
[null,"IDENTIFICACIÓN DEL INDICADOR"]
[null,"Nombre:",null,"Grado de cumplimiento del Plan Anticorrupción y de Atención al Ciudadano",null,null,null,null,null,"Código:",null,"GIT-288"]
[null,"Objetivo:",null,"Evaluar el nivel de cumplimiento del Plan Anticorrupción y de Atención al Ciudadano de la vigencia.",null,null,null,null,null,"Proceso asociado:",null,"Gestión Integrada"]
[null,"ÁMBITO DEL INDICADOR"]
[null,"Tipo de Indicador:",null,null,null,null,null,null,null,"Nivel de Intervención:",null,"Resultados"]
[null,"Alineación con el Plan Estratégico de Desarrollo 2018 - 2030:",null,"Lineamiento 5",null,"5.10 Fortalecimiento y ampliación de mecanismos que garanticen la eficiencia, eficacia y efectividad de las funciones universitarias; la transparencia y la ética en la toma de decisiones y en la operación institucional; y la seguridad jurídica institucional.",null,null,null,null,null,null,null,null,{"$f":"IF(D11=\"Lineamiento 1\",\"UNO\",IF(D11=\"Lineamiento 2\",\"DOS\",IF(D11=\"Lineamiento 3\",\"TRES\",IF(D11=\"Lineamiento 4\",\"CUATRO\",IF(D11=\"Lineamiento 5\",\"CINCO\")))))","v":"CINCO"}]
[null,null,null,null,null,null,null,null,null,null,null,null,null,null,{"$f":"IF(D12=\"Lineamiento 1\",\"UNO\",IF(D12=\"Lineamiento 2\",\"DOS\",IF(D12=\"Lineamiento 3\",\"TRES\",IF(D12=\"Lineamiento 4\",\"CUATRO\",IF(D12=\"Lineamiento 5\",\"CINCO\")))))","v":false}]
[null," FORMA DE CÁLCULO"]
[null,"Fórmula",null,null,null,null,"Unidad de Medida",null,null,"Tendencia esperada del Indicador",null,"Meta o Valor Esperado"]
[]
[null,"(Ʃ Avance de los componentes del Plan Anticorrupción y de Atención al Ciudadano del cuatrimestre evaluado)/(Número total de componentes)",null,null,null,null,"%",null,null,"              Creciente",null,1]
[null,null,null,null,null,null,null,null,null,"              Decreciente"]
[null,null,null,null,null,null,null,null,null,"              Estático"]
[null," VARIABLES DEL INDICADOR"]
[null,"Nombre",null,null,null,null,"Unidad de Medida",null,null,"Fuente de Información "]
[null,"Ʃ Avance de los componentes del Plan Anticorrupción y de Atención al Ciudadano del cuatrimestre evaluado",null,null,null,null,"%",null,null,"Informes Cuatrimestrales de Monitoreo del PAAC"]
[]
[null,"Número total de componentes",null,null,null,null,"Número de componentes",null,null,"Plan Anticorrupción y de Atención al Ciudadano de la vigencia"]
[]
[]
[]
[null," RANGOS DE EVALUACIÓN",null,null,null,null,null,"PERIODICIDAD DE MEDICIÓN",null,null,"REPORTE DEL INDICADOR"]
[null,"Crítico",null,"En Riesgo",null,"Adecuado",null,"        Anual                              Trimestral",null,null,"         Líder del Proceso"]
[null,"Menos de 69%",null,"Entre 89% y 70%",null,"Entre 100% y 90%",null,"        Semestral                        Mensual",null,null,"         Gestor del Proceso"]
[null,null,null,null,null,null,null,"        Cuatrimestral",null,null,"         Automático (sistema de información)"]
[null," INTERPRETACIÓN DE LOS RESULTADOS DEL INDICADOR (Cómo se lee el Indicador)"]
[null,"El porcentaje representa el promedio de avance de actividades ejecutadas de los componentes del Plan Anticorrupción y de Atención al Ciudadano."]
[null,"INSTRUCCIONES PARA EL CÁLCULO DE VARIABLES",null,null,null,null,null,null,null,null,null,null,null,null,{"$f":"UPPER(B33)","v":"INSTRUCCIONES PARA EL CÁLCULO DE VARIABLES"}]
[null,"Numerador:","Ʃ Avance de los componentes del Plan Anticorrupción y de Atención al Ciudadano del cuatrimestre evaluado",null,null,null,null,null,null,null,null,null,null,null,{"$f":"UPPER(B34)","v":"NUMERADOR:"}]
[null,"1.","Consultar el Informe Cuatrimestral de Monitoreo al Plan Anticorrupción y de Atención al Ciudadano correspondiente",null,null,null,null,null,null,null,null,null,null,null,{"$f":"UPPER(B35)","v":"1."}]
[null,"2.","Sumar el avance porcentual de cada uno de los componentes del Plan Anticorrupción y de Atención al Ciudadano",null,null,null,null,null,null,null,null,null,null,null,{"$f":"UPPER(B36)","v":"2."}]
[null,"3."]
[null,"Denominador:","Número total de componentes"]
[null,"1.","Consultar el Plan Anticorrupción y de Atención al Ciudadano vigente"]
[null,"2.","Tomar el número de componentes del Plan"]
[null,"3."]
[null," DEFINICIÓN DE TÉRMINOS"]
[null,"Plan Anticorrupción y Atención al Ciudadano: Es un instrumento de tipo preventivo para el control de la corrupción, su metodología incluye seis (6) componentes autónomos e independientes, que contienen parámetros y soporte normativo propio y existe un componente de iniciativas adicionales que permitan fortalecer su estrategia de lucha contra la corrupción."]
[]
[]
[]
[]
[null," RESPONSABLES DE LA MEDICIÓN"]
[null,"Nivel:",null,null,"Consolidar y Reportar Datos",null,null,"Seguimiento y Análisis",null,null,"Toma de Decisiones"]
[null,"Cargo:",null,null,"Equipo SIGUD de la Oficina Asesora de Planeación y Control",null,null,"Jefe de Oficina Asesora de Planeación y Control",null,null,"Jefe de Oficina Asesora de Planeación y Control"]
[null,"VERIFICACIÓN Y APROBACIÓN"]
[null,"Elaboró",null,null,null,"Revisó",null,null,null,"Aprobó"]
[null,"Nombre:","Santiago Durán Mora",null,null,"Nombre:","Jennifer Crespo",null,null,"Nombre:","Jennifer Crespo"]
[null,"Cargo:","Contratista - Oficina Asesora de Planeación y Control",null,null,"Cargo:","Jefe de la Oficina Asesora de Planeación y Control",null,null,"Cargo:","Jefe de la Oficina Asesora de Planeación y Control"]
[null,"Fecha:","2022-12-05",null,null,"Fecha:","XX/12/2022",null,null,"Fecha:","XX/12/2022"]
[]
[null,"Fecha",null,"Versión",null,null,"Cambios",null,null,"Justificación del Cambio"]
[null,"XX/12/2022",null,1,null,null,"Creación",null,null,"Se crea el indicador para evaluar el avance de ejecución del Plan Anticorrupción y de Atención al Ciudadano."]

{"sheet":"GI-289","index":5,"n_rows":58,"n_cols":15,"rows_kept":58,"cut":false,"hidden":false,"merged":[[4,1,4,12],[5,1,5,12],[6,1,6,2],[6,3,6,8],[6,9,6,10],[6,11,6,12],[1,1,3,2],[1,3,1,8],[1,9,1,10],[1,11,3,12],[2,3,2,8],[2,9,2,10],[3,3,3,8],[3,9,3,10],[7,1,7,2],[7,3,7,8],[7,9,7,10],[7,11,7,12],[8,1,8,12],[9,1,9,2],[9,3,9,8],[9,9,9,10],[9,11,9,12],[13,1,14,5],[13,6,14,8],[13,9,14,10],[13,11,14,12],[15,1,17,5],[15,6,17,8],[15,11,17,12],[10,1,11,2],[10,3,10,4],[10,5,10,12],[11,3,11,4],[11,5,11,12],[12,1,12,12],[22,1,23,5],[22,6,23,8],[22,9,23,12],[24,1,25,5],[24,6,25,8],[24,9,25,12],[18,1,18,12],[19,1,19,5],[19,6,19,8],[19,9,19,12],[20,1,21,5],[20,6,21,8],[20,9,21,12],[28,1,29,2],[28,3,29,4],[28,5,29,6],[28,7,28,9],[28,10,28,12],[29,10,29,12],[26,1,26,6],[26,7,26,9],[26,10,26,12],[27,1,27,2],[27,3,27,4],[27,5,27,6],[27,7,27,9],[27,10,27,12],[36,2,36,12],[37,2,37,12],[38,2,38,12],[39,2,39,12],[40,2,40,12],[41,1,41,12],[30,1,30,12],[31,1,31,12],[32,1,32,12],[33,2,33,12],[34,2,34,12],[35,2,35,12],[48,1,48,3],[48,4,48,6],[48,7,48,9],[48,10,48,12],[49,1,49,3],[49,4,49,6],[49,7,49,9],[49,10,49,12],[42,1,42,12],[43,1,43,12],[44,1,44,12],[45,1,45,12],[46,1,46,12],[47,1,47,12],[53,2,53,4],[53,6,53,8],[53,10,53,12],[54,2,54,4],[54,6,54,8],[54,10,54,12],[50,1,50,12],[51,1,51,4],[51,5,51,8],[51,9,51,12],[52,2,52,4],[52,6,52,8],[52,10,52,12],[55,1,55,12],[56,1,56,2],[56,3,56,5],[56,6,56,8],[56,9,56,12],[57,1,57,2],[57,3,57,5],[57,6,57,8],[57,9,57,12]]}
[null,null,null,null,null,null,null,null,null,null,null,null," "]
[null,null,null,"HOJA DE VIDA DE INDICADOR",null,null,null,null,null,"Código: GI-GUI-002-FR-004"]
[null,null,null,"Macroproceso: Direccionamiento Estratégico",null,null,null,null,null,"Versión: 04"]
[null,null,null,"Proceso: Gestión Integrada",null,null,null,null,null,"Fecha de Aprobación: 13/10/2022"]
[]
[null,"IDENTIFICACIÓN DEL INDICADOR"]
[null,"Nombre:",null,"Percepción frente a las jornadas de capacitación y/o socialización del SIGUD",null,null,null,null,null,"Código:",null,"GIT-289"]
[null,"Objetivo:",null,"Identificar el tipo de percepción de los Líderes, Gestores y Promotores de Procesos frente a las jornadas de capacitación y/o socialización realizadas por el Equipo SIGUD.",null,null,null,null,null,"Proceso asociado:",null,"Gestión Integrada"]
[null,"ÁMBITO DEL INDICADOR"]
[null,"Tipo de Indicador:",null,null,null,null,null,null,null,"Nivel de Intervención:",null,"Impacto"]
[null,"Alineación con el Plan Estratégico de Desarrollo 2018 - 2030:",null,"Lineamiento 5",null,"5.10 Fortalecimiento y ampliación de mecanismos que garanticen la eficiencia, eficacia y efectividad de las funciones universitarias; la transparencia y la ética en la toma de decisiones y en la operación institucional; y la seguridad jurídica institucional.",null,null,null,null,null,null,null,null,{"$f":"IF(D11=\"Lineamiento 1\",\"UNO\",IF(D11=\"Lineamiento 2\",\"DOS\",IF(D11=\"Lineamiento 3\",\"TRES\",IF(D11=\"Lineamiento 4\",\"CUATRO\",IF(D11=\"Lineamiento 5\",\"CINCO\")))))","v":"CINCO"}]
[null,null,null,null,null,null,null,null,null,null,null,null,null,null,{"$f":"IF(D12=\"Lineamiento 1\",\"UNO\",IF(D12=\"Lineamiento 2\",\"DOS\",IF(D12=\"Lineamiento 3\",\"TRES\",IF(D12=\"Lineamiento 4\",\"CUATRO\",IF(D12=\"Lineamiento 5\",\"CINCO\")))))","v":false}]
[null," FORMA DE CÁLCULO"]
[null,"Fórmula",null,null,null,null,"Unidad de Medida",null,null,"Tendencia esperada del Indicador",null,"Meta o Valor Esperado"]
[]
[null,"(Ʃ  Puntajes obtenidos en las encuestas realizadas en las jornadas de capacitación y/o socialización del SIGUD)/(Número de personas encuestadas)",null,null,null,null,"%",null,null,"              Creciente",null,0.8]
[null,null,null,null,null,null,null,null,null,"              Decreciente"]
[null,null,null,null,null,null,null,null,null,"              Estático"]
[null," VARIABLES DEL INDICADOR"]
[null,"Nombre",null,null,null,null,"Unidad de Medida",null,null,"Fuente de Información "]
[null,"Ʃ  Puntajes obtenidos en las encuestas realizadas en las jornadas de capacitación y/o socialización del SIGUD",null,null,null,null,"%",null,null,"Encuestas de percepción realizadas por el SIGUD"]
[]
[null,"Número de personas encuestadas",null,null,null,null,"Número",null,null,"Encuestas de percepción realizadas por el SIGUD"]
[]
[]
[]
[null," RANGOS DE EVALUACIÓN",null,null,null,null,null,"PERIODICIDAD DE MEDICIÓN",null,null,"REPORTE DEL INDICADOR"]
[null,"Crítico",null,"En Riesgo",null,"Adecuado",null,"        Anual                              Trimestral",null,null,"         Líder del Proceso"]
[null,"Menos de 64%",null,"Entre 79% y 65%",null,"Entre 100% y 80%",null,"        Semestral                        Mensual",null,null,"         Gestor del Proceso"]
[null,null,null,null,null,null,null,"        Cuatrimestral",null,null,"         Automático (sistema de información)"]
[null," INTERPRETACIÓN DE LOS RESULTADOS DEL INDICADOR (Cómo se lee el Indicador)"]
[null,"El porcentaje obtenido representa el promedio de percepción frente a las jornadas de capacitación y/o socialización por parte de los Líderes, Gestores y Promotores de Procesos."]
[null,"INSTRUCCIONES PARA EL CÁLCULO DE VARIABLES",null,null,null,null,null,null,null,null,null,null,null,null,{"$f":"UPPER(B33)","v":"INSTRUCCIONES PARA EL CÁLCULO DE VARIABLES"}]
[null,"Numerador:","Ʃ  Puntajes obtenidos en las encuestas realizadas en las jornadas de capacitación y/o socialización del SIGUD",null,null,null,null,null,null,null,null,null,null,null,{"$f":"UPPER(B34)","v":"NUMERADOR:"}]
[null,"1.","Consultar los resultados de las encuestas de percepción sobre las jornadas de capacitación y/o socialización del SIGUD",null,null,null,null,null,null,null,null,null,null,null,{"$f":"UPPER(B35)","v":"1."}]
[null,"2.","Sumar los puntajes obtenidos en cada una de las encuestas",null,null,null,null,null,null,null,null,null,null,null,{"$f":"UPPER(B36)","v":"2."}]
[null,"3."]
[null,"Denominador:","Número de personas encuestadas"]
[null,"1.","Consultar los resultados de las encuestas de percepción sobre las jornadas de capacitación y/o socialización del SIGUD"]
[null,"2.","Tomar el número de encuestas realizadas en el periodo de tiempo a evaluar"]
[null,"3."]
[null," DEFINICIÓN DE TÉRMINOS"]
[null,"Encuesta de percepción: Herramienta utilizada para identificar la percepción de los grupos de valor con respecto a un servicio, producto o un conjunto de los mismos."]
[null,"Sistema Integrado de Gestión: Es el conjunto de orientaciones, procesos, políticas, metodologías, instancias e instrumentos enfocados en garantizar un desempeño institucional articulado y armónico que busque de manera constatable la satisfacción de los grupos de interés. Tal sistema de encuentra conformado por los siguientes subsistemas: Subsistema de Gestión de la Calidad SGC, Subsistema Interno de Gestión de Seguridad de la Información SIGA, Subsistema de Seguridad y Salud Ocupacional S&SO, Subsistema de Responsabilidad Social SRS, Subsistema de Gestión Ambiental SGA, Subsistema de Control Interno SCI."]
[]
[]
[]
[null," RESPONSABLES DE LA MEDICIÓN"]
[null,"Nivel:",null,null,"Consolidar y Reportar Datos",null,null,"Seguimiento y Análisis",null,null,"Toma de Decisiones"]
[null,"Cargo:",null,null,"Equipo SIGUD de la Oficina Asesora de Planeación y Control",null,null,"Jefe de Oficina Asesora de Planeación y Control",null,null,"Jefe de Oficina Asesora de Planeación y Control"]
[null,"VERIFICACIÓN Y APROBACIÓN"]
[null,"Elaboró",null,null,null,"Revisó",null,null,null,"Aprobó"]
[null,"Nombre:","Santiago Durán Mora",null,null,"Nombre:","Jennifer Crespo",null,null,"Nombre:","Jennifer Crespo"]
[null,"Cargo:","Contratista - Oficina Asesora de Planeación y Control",null,null,"Cargo:","Jefe de la Oficina Asesora de Planeación y Control",null,null,"Cargo:","Jefe de la Oficina Asesora de Planeación y Control"]
[null,"Fecha:","2022-12-05",null,null,"Fecha:","XX/12/2022",null,null,"Fecha:","XX/12/2022"]
[]
[null,"Fecha",null,"Versión",null,null,"Cambios",null,null,"Justificación del Cambio"]
[null,"XX/12/2022",null,1,null,null,"Creación",null,null,"Se crea el indicador para realizar la evaluación de las jornadas de capacitación y/o socialización brindadas por el Equipo del Sistema Integrado de Gestión de la Universidad Distrital."]